Cogmind - Beta 17.1 @@@ ROGUE MODE // 2026.09.10 @ 21:50:28 Player: profwumbo Result: Destroyed by H-55 Commando with Gauss Rifle Performance ------------- Evolutions (2) 1000 Regions Visited (4) 800 Robots Destroyed (7) 35 Value Destroyed (215) 215 Prototype IDs (0) 0 Alien Tech Used (0) 0 Bonus (0) 0 TOTAL SCORE: 2050 Bonus ------- None Cogmind --------- Core Integrity 0/550 Matter 32/300 Energy 90/100 System Corruption 2% Temperature Cool (0) Movement Core (50) Location -8/Materials Parts ------- > --- POWER (2) -------- (None) > --- PROPULSION (5) --- (None) > --- UTILITY (2) ------ (None) > --- WEAPON (2) ------- (None) > --- INVENTORY (5) ---- Light Ion Engine Light Ion Engine Advanced Weight Redist. System EMP Blaster Improved Grenade Launcher Peak State ------------ > --- POWER ------------ (None) > --- PROPULSION ------- (None) > --- UTILITY ---------- Structural Scanner Core Shielding > --- WEAPON ----------- EMP Blaster > --- INVENTORY -------- Light Ion Engine Light Ion Engine Advanced Weight Redist. System Improved Terrain Scanner [Rating: 4] Favorites ----------- Power None Propulsion None Utility Core Shielding Device Structural Scanner Protection Core Shielding Weapon Grenade Launcher Launcher Grenade Launcher Build | -11 -10 -10 -9 -8 ------- Run | Yrd Mat Min Mat Mat Slots Evolved 4 | . . . 2 2 Power 1 | . . . . 1 Propulsion 3 | . . . 2 1 Utility . | . . . . . Weapon . | . . . . . Parts Attached 7 | . . 1 2 4 Power . | . . . . . Engine . | . . . . . Core . | . . . . . Reactor . | . . . . . Propulsion . | . . . . . Treads . | . . . . . Leg . | . . . . . Wheel . | . . . . . Hover . | . . . . . Flight . | . . . . . Utility 3 | . . . 2 1 Device 2 | . . . 1 1 Storage . | . . . . . Processor . | . . . . . Hackware . | . . . . . Protection 1 | . . . 1 . Artifact . | . . . . . Weapon 4 | . . 1 . 3 Energy Gun . | . . . . . Energy Cannon . | . . . . . Ballistic Gun . | . . . . . Ballistic Cannon . | . . . . . Launcher 4 | . . 1 . 3 Special Weapon . | . . . . . Impact Weapon . | . . . . . Slashing Weapon . | . . . . . Piercing Weapon . | . . . . . Special Melee Weapon . | . . . . . Unidentified Prototypes . | . . . . . Parts Lost 5 | . . 1 . 4 Power . | . . . . . Propulsion . | . . . . . Utility 3 | . . . . 3 Weapon 2 | . . 1 . 1 Highest Loss Streak 4 | . . 1 . 4 To Critical Strikes . | . . . . . Average Backups 3 | 1 3 3 3 4 Power 1 | 1 2 2 2 2 Propulsion . | . . . . . Utility 1 | . . 1 1 1 Weapon . | . . . . . Tool/Special . | . . . . . Unused Backups 4 | . . . . 4 Power 2 | . . . . 2 Propulsion . | . . . . . Utility 2 | . . . . 2 Weapon . | . . . . . Tool/Special . | . . . . . Average Slot Usage (%) 10 | . . 12 13 15 Device 3 | . . . 5 6 Protection 4 | . . . 7 7 Launcher 2 | . . 12 . 1 Peak Build Rating 4 | . . 1 2 4 Average Rating 1 | . . . 1 2 On Entrance . | . . . . 2 Avg Prop Armor Cover (%) . | . . . . . Naked Turns 121 | . 75 13 21 12 Heaviest Build 6 | . . 3 2 6 Greatest Support 3 | 3 3 3 3 3 Greatest Overweight (x) 1 | . . . . 1 Average Overweight (x) . | . . . . . Largest Inventory Capacity 5 | 5 5 5 5 5 Average Capacity 5 | 5 5 5 5 5 Most Carried 5 | 2 4 3 4 5 Average Carried 3 | 1 3 3 3 4 Final Capacity 5 | 5 5 5 5 5 Final Carried 5 | 2 4 3 4 5 Class Distribution -------------------- 100% | Mutant Dominant Class ---------------- Mutant | -10/Materials Mutant | -10/Mines Mutant | -9/Materials Mutant | -8/Materials Resources | -11 -10 -10 -9 -8 ----------- Run | Yrd Mat Min Mat Mat Matter Collected 38 | . . 34 . 4 Remotely . | . . . . . Salvage Created 70 | . . 64 . 6 Parts 10 | . . 6 . 4 Haulers Intercepted . | . . . . . Recyclers Shooed . | . . . . . Parts Field Recycled . | . . . . . Retrieved Matter . | . . . . . Parts Self-Destructed . | . . . . . Prevented . | . . . . . Parts Restored . | . . . . . Kills | -11 -10 -10 -9 -8 ------- Run | Yrd Mat Min Mat Mat Combat Hostiles Destroyed 7 | . . 5 . 2 AOE 7 | . . 5 . 2 Classes Destroyed 3 | . . 2 . 1 Swarmer 3 | . . 3 . . Cutter 2 | . . . . 2 Grunt 2 | . . 2 . . Best Kill Streak 5 | . . 5 . 2 Combat Bots Only 5 | . . 5 . 2 Max Kills in Single Turn 3 | . . 3 . 1 Gunslinging . | . . . . . Exploded 3 | . . 3 . 1 Melee . | . . . . . Uniques/NPCs Destroyed . | . . . . . Combat | -11 -10 -10 -9 -8 -------- Run | Yrd Mat Min Mat Mat Hostile Shots Fired 62 | . . 20 . 42 Missed 25 | . . 8 . 17 Hits 37 | . . 12 . 25 Melee 3 | . . . . 3 Projectile 34 | . . 12 . 22 AOE 1 | . . . . 1 Critical Strikes 3 | . . . . 3 Actively Blocked 2 | . . . . 2 Damage Taken 1003 | . . 210 . 793 Core 716 | . . 150 . 566 Absorbed by Shields . | . . . . . Redirected to Shielding 54 | . . . . 54 Core Remaining (%) 80 | 100 . 40 100 . Volleys Fired 6 | . . 3 . 3 Largest 1 | . . 1 . 1 Hottest 36 | . . 30 . 36 Shots Fired 6 | . . 3 . 3 Gun . | . . . . . Cannon . | . . . . . Launcher 6 | . . 3 . 3 Special . | . . . . . Kinetic . | . . . . . Thermal . | . . . . . Explosive 5 | . . 3 . 2 Electromagnetic 1 | . . . . 1 Robot Hit Streak 2 | . . 1 . 2 Robot Miss Streak 2 | . . 1 . 2 Penetration Max . | . . . . . Secondary Targets . | . . . . . Shots Hit Robots 3 | . . 1 . 2 Core Hits 11 | . . 8 . 3 Critical Kills . | . . . . . Critical Parts Destroyed . | . . . . . Critical Strikes . | . . . . . Melee Attacks . | . . . . . Impact . | . . . . . Slashing . | . . . . . Piercing . | . . . . . Sneak Attacks . | . . . . . Combat Hostiles . | . . . . . Follow-up Attacks . | . . . . . Damage Inflicted 524 | . . 356 . 168 Guns . | . . . . . Cannons . | . . . . . Explosions 515 | . . 356 . 159 Melee . | . . . . . Ramming 9 | . . . . 9 Kinetic . | . . . . . Thermal 232 | . . 232 . . Explosive 266 | . . 124 . 142 Electromagnetic 17 | . . . . 17 Impact . | . . . . . Slashing . | . . . . . Piercing . | . . . . . Highest Corruption 2 | . . . . 2 Average Corruption 2 | . . . . 2 Corruption Purged . | . . . . . Corruption Blocked . | . . . . . Overload Shots . | . . . . . Overflow Damage 32 | . . 26 . 6 Projectiles . | . . . . . Explosions 32 | . . 26 . 6 Melee . | . . . . . Knockbacks . | . . . . . Impact . | . . . . . Kinetic . | . . . . . Secondary . | . . . . . Self-Inflicted Damage 222 | . . 111 . 111 Shots 7 | . . 4 . 3 Rammed 3 | . . . . 3 Targets Rammed 3 | . . . . 3 Kicked . | . . . . . Crushed . | . . . . . Highest Temperature 2 | . . 2 . . Average Temperature 2 | . . 2 . . Received Heat Transfer 99 | . . . . 99 Siege Activations . | . . . . . Martial Activations . | . . . . . Shielding Activations . | . . . . . Robots Disrupted . | . . . . . Combat Hostiles . | . . . . . Robots Corrupted . | . . . . . Combat Hostiles . | . . . . . Parts Fried . | . . . . . Impact Corruptions . | . . . . . Robots Melted . | . . . . . Combat Hostiles . | . . . . . Parts Melted . | . . . . . Heat Transferred 300 | . . 300 . . Parts Sabotaged . | . . . . . Parts Stolen . | . . . . . Parts Stripped . | . . . . . Power Chain Reactions . | . . . . . Alert | -11 -10 -10 -9 -8 ------- Run | Yrd Mat Min Mat Mat Maximum Alert Level 1 | . . 1 . . Low Security (%) 85 | 100 100 18 100 100 Level 1 14 | . . 81 . . Level 2 . | . . . . . Level 3 . | . . . . . Level 4 . | . . . . . Level 5 . | . . . . . High Security . | . . . . . Max Security . | . . . . . Peak Influence 280 | . 30 280 102 87 Initial 97 | . . 7 97 29 Average 70 | . 6 232 90 15 Influence Increases 461 | . 30 283 15 133 Destroy 0b10 Robot/C 140 | . . 100 . 40 Destroy Leader 30 | . . 20 . 10 Successful Hack 16 | . . . . 16 Disable Machine 105 | . . 105 . . Destroy Structure 65 | . . 58 . 7 Partial Spotted 30 | . . . 15 15 Lose Combat Pursuer 75 | . 30 . . 45 Influence Decreases 374 | . 10 53 193 118 Entered New Map 209 | . . 13 153 43 Time Decay 125 | . 10 30 40 45 Lost Part 40 | . . 10 . 30 Squads Dispatched 4 | . 1 . . 3 Investigation 2 | . 1 . . 1 Extermination . | . . . . . Reinforcement 2 | . . . . 2 Assault . | . . . . . Garrison . | . . . . . Intercept . | . . . . . Searches Triggered . | . . . . . Construction Impeded . | . . . . . Haulers Reinforced . | . . . . . Active Scanning Responses . | . . . . . Cargo Convoy Interrupts . | . . . . . Stealth | -11 -10 -10 -9 -8 --------- Run | Yrd Mat Min Mat Mat Distress Signals 1 | . . . . 1 Communications Jammed . | . . . . . Distress Signals . | . . . . . Times Spotted 24 | . 4 5 1 14 Peak Tracking Total 13 | . 2 3 2 13 Tactical Retreats 2 | . 1 . . 1 Traps | -11 -10 -10 -9 -8 ------- Run | Yrd Mat Min Mat Mat Traps Triggered 2 | . 2 . . . Indirectly . | . . . . . Trap Hack Attempts . | . . . . . Triggered . | . . . . . Disarmed . | . . . . . Reprogrammed . | . . . . . Reused . | . . . . . Traps Extracted . | . . . . . Installed . | . . . . . Triggered . | . . . . . Machines | -11 -10 -10 -9 -8 ---------- Run | Yrd Mat Min Mat Mat Machines Disabled 7 | . . 7 . . Max in Single Turn 6 | . . 6 . . Machines Repaired . | . . . . . Machines Dismantled . | . . . . . Machines Sabotaged . | . . . . . Overloaded Fab Kills . | . . . . . Hacking | -11 -10 -10 -9 -8 --------- Run | Yrd Mat Min Mat Mat Machines Accessed 2 | . . . 1 1 Terminals 2 | . . . 1 1 Fabricators . | . . . . . Repair Stations . | . . . . . Recycling Units . | . . . . . Scanalyzers . | . . . . . Garrison Access . | . . . . . Total Hacks 7 | . . . 3 4 Successful 2 | . . . . 2 Failed 5 | . . . 3 2 Catastrophic 1 | . . . 1 . Database Lockouts . | . . . . . Manual 6 | . . . 3 3 Terminals 7 | . . . 3 4 Fabricators . | . . . . . Repair Stations . | . . . . . Recycling Units . | . . . . . Scanalyzers . | . . . . . Garrison Access . | . . . . . Terminal Hacks 2 | . . . . 2 Level Access Points 1 | . . . . 1 Branch Access Points 1 | . . . . 1 Fabricator Hacks . | . . . . . Repair Station Hacks . | . . . . . Recycling Unit Hacks . | . . . . . Scanalyzer . | . . . . . Garrison Access Hacks . | . . . . . Unauthorized Hacks . | . . . . . Terminals . | . . . . . Fabricators . | . . . . . Repair Stations . | . . . . . Recycling Units . | . . . . . Scanalyzers . | . . . . . Garrison Access . | . . . . . Data Cores Recovered . | . . . . . Used . | . . . . . Hacking Detections 2 | . . . 1 1 Full Trace Events 2 | . . . 1 1 Feedback Events . | . . . . . Feedback Blocked . | . . . . . Robot Schematics Acquired . | . . . . . Robots Built . | . . . . . Authchips . | . . . . . Time . | . . . . . Total Robot Build Rating . | . . . . . Part Schematics Acquired . | . . . . . Parts Built . | . . . . . Authchips . | . . . . . Time . | . . . . . Total Part Build Rating . | . . . . . Part Studies Acquired . | . . . . . Parts Repaired . | . . . . . Time . | . . . . . Parts Recycled . | . . . . . Recycled Matter . | . . . . . Retrieved Matter . | . . . . . Retrieved Components . | . . . . . Parts Scanalyzed . | . . . . . Part Schematics Acquired . | . . . . . Parts Damaged . | . . . . . Bothacking | -11 -10 -10 -9 -8 ------------ Run | Yrd Mat Min Mat Mat Used RIF Installer . | . . . . . Robots Hacked . | . . . . . Non-combat . | . . . . . Combat . | . . . . . Robot Hacks Applied . | . . . . . Relay Couplers Released . | . . . . . Fabnet Peak Effective % . | . . . . . Robots Rewired . | . . . . . Allies Hacked . | . . . . . Hacks Repelled . | . . . . . Allies | -11 -10 -10 -9 -8 -------- Run | Yrd Mat Min Mat Mat Total Allies . | . . . . . Largest Group . | . . . . . Highest-Rated Group . | . . . . . Highest-Rated Ally . | . . . . . Total Orders . | . . . . . Ally Attacks . | . . . . . Total Damage . | . . . . . Kills . | . . . . . Allies Corrupted . | . . . . . Allies Melted . | . . . . . Intel | -11 -10 -10 -9 -8 ------- Run | Yrd Mat Min Mat Mat Active Infowar (turns) 132 | . . . 49 83 Terrain 7 | . . . . 7 Structural 125 | . . . 49 76 Robot Analysis Total . | . . . . . Derelict Logs Recovered . | . . . . . Drone Launches . | . . . . . Drone Recoveries . | . . . . . Exploration | -11 -10 -10 -9 -8 ------------- Run | Yrd Mat Min Mat Mat Turns Passed 356 | 15 75 64 86 116 Spaces Moved 620 | 25 146 113 163 173 Core 620 | 25 146 113 163 173 Treads . | . . . . . Legs . | . . . . . Wheels . | . . . . . Hover . | . . . . . Flight . | . . . . . Fastest Speed 50 | 50 50 50 50 50 Average Speed 50 | 50 50 50 50 50 Slowest Speed 100 | 50 50 50 50 100 Overloaded Moves . | . . . . . Propulsion Burnouts . | . . . . . Robots Hopped . | . . . . . Potential Cave-ins . | . . . . . Cave-ins Triggered . | . . . . . Exploration Rate (%) 20 | 3 33 29 15 21 Regions Visited 4 Branch Regions 1 Pre-discovered Areas . | . . . . . Known Exits Taken . | . . . . . Unknown Exits Taken 4 | 1 1 1 1 . Scrap Searched . | . . . . . Spaces Dug . | . . . . . Terrain Destroyed 69 | . . 61 . 8 Melee . | . . . . . Projectile . | . . . . . AOE 69 | . . 61 . 8 Terrain Rammed . | . . . . . Walls Destroyed . | . . . . . Machines Disabled . | . . . . . Actions | -11 -10 -10 -9 -8 --------- Run | Yrd Mat Min Mat Mat Total 653 | 26 147 116 165 199 Wait 9 | . . . . 9 Move 616 | 24 145 112 162 173 Hop . | . . . . . Pick Up 8 | 2 2 . 1 3 Fast Attach 4 | . . . 2 2 Attach 4 | . . 1 . 3 Detach 2 | . . . . 2 Swap . | . . . . . Drop 1 | . . . . 1 Fire 6 | . . 3 . 3 Melee . | . . . . . Ram 3 | . . . . 3 Kick . | . . . . . Crush . | . . . . . Escape Stasis . | . . . . . Rewire . | . . . . . Trap . | . . . . . Miscellaneous . | . . . . . Route ------- -11/Scrapyard -10/Materials -10/Mines -9/Materials -8/Materials (discovered 5 exits: Fac x3 / Sto x2) History --------- Turn | Location | Event 6 | -11/Scrapyard | Discovered new exit (range 15) 16 | -11/Scrapyard | Entered Materials 85 | -10/Materials | Discovered new exit (range 12) 91 | -10/Materials | Entered Mines 149 | -10/Mines | Core integrity fell below 50% 149 | -10/Mines | Discovered new exit (range 12) 155 | -10/Mines | Entered Materials 155 | -9/Materials | Evolved 2 slots: Propulsion x2 212 | -9/Materials | Discovered new exit (range 7) 241 | -9/Materials | Entered another Materials area 241 | -8/Materials | Evolved 2 slots: Power x1, Propulsion x1 303 | -8/Materials | Build established: Mutant 307 | -8/Materials | Identified exit to Factory 307 | -8/Materials | Identified exit to Storage 338 | -8/Materials | Core integrity fell below 50% 346 | -8/Materials | Core integrity fell below 20% 357 | -8/Materials | Destroyed by H-55 Commando with Gauss Rifle Last Messages --------------- Knocked back. Penetrated by Slug. Knocked back. Imp. Terrain Scanner destroyed. Knocked back. Acquired 4 matter. Acquired Imp. Grenade Launcher. ALERT: Hostiles spotted, dispatching reinforcements to Terminal M010. Imp. Grenade Launcher severed. Slug penetrates Wall. Acquired Imp. Grenade Launcher. C-17 Slicer destroyed. O-16 Technician destroyed. Penetrated by Slug. C-17 Slicer destroyed. Imp. Grenade Launcher destroyed. Destroyed Imp. Grenade Launcher. Acquired Imp. Grenade Launcher. Penetrated by Slug. Map ----- +----------------------------------------------------+ | ?????????>???????????????????????????????????????? | | ?????????????????????????????????????????????????? | | ?????????????????????????????????????????????????? | | ?????????????????????????????????????????????????? | | ?????????????????????????????????????????????????? | | ?????????????????????????????????????????????????? | | ?????????????????????????????????????????????????? | | ?????????????????????????????????????????????????? | | ?????????????????????????????????????????? ?????? | | ?????????????????????????????????????????? ????? | | ????????????????????????????????????????#? ???? | | ?????????????????????????????????????????# ??? | | ???????????????????????????????????????### ??? | | ????????????????????????????????####???# ???? | | ???????????????????????????????# """ ## ????? | | ???????????????????????????????# """ ## ?????? | | ???????????????????????????????# """ ## ####### | | ???????????????????????????????# ?# ## | | ???????????????????????????????#] ???# ## | | ??????????????????????????###### ???## ## | | ??????????????+############ ## ##/### #% =! | | ?????????????? % u hu #% =% | | ?????????????? %%H " | | ?????????????? * % ! ! # "" | | ???????????????????##+## = * #####"# " "" | | ???????????????????# @!]= ##???######### "" | | ???????????????????#! ]]] ##????????????# "" | | ???????????????????# ]] #????????????# | | ???????????????????# #????????????#### # | | ???????????????????# """ """ ###???????????????### | | ???????????????????# """ """ #???????????????????? | | ???????????????????# """ """ #???????????######### | | ???????????????????# #???????? ######## | | ???????????????????#?#########??????? | | ?????????????????????????????????????? T | | ????????????????????????????????????? | | ???????????????????????????????????????? ######## | | ?????????????????????????????????????????###### | | ?????????????????????????????????????????????## | | ?????????????????????????????????????????????## | | ?????????????????????????????????????????????## | | ?????????????????????????????????????????????## | | ?????????????????????????????????????????????## "T | | ?????????????????????????????????????????????## "" | | ?????????????????????????????????????????????## | | ?????????????????????????????????????????????## ## | | ?????????????????????????????????????????????##### | | ??????????>??????????????????????????????????##### | | ?????????????????????????????????????????????????? | | ?????????????????????????????????????????????????? | +----------------------------------------------------+ Best States ------------- Heat Dissipation 31 Energy Generation 5 Energy Capacity 100 Matter Stores 114 Matter Capacity 300 Sight Range 16 Terrain Scan Range 16 Terrain Scan Density 10 Core Shielding 20 Evasion (%) 50 Item Schematics ----------------- None Robot Schematics ------------------ None Fabricated ------------ Nothing Repaired ---------- Nothing Studied --------- None Alien Tech Used ----------------- None Achievements -------------- None Challenges ------------ None Game ------ Seed CouplerRiotNanosword Manual? 0 Play Time 00:09:39 Cumulative 26.7 hours Start 2026.09.10 @ 21:41:35 End 2026.09.10 @ 21:50:28 Sessions 1 Manual Loads 0 Difficulty Rogue Special Mode None Game No. 27 Rogue 20 Adventurer 5 Explorer 2 Win Type - Total 0 Types 0/0/0/0/0/0/0/0/0/0 Lore% 11 Gallery% 17 Achievement% 16 Wizard Run 0 Options --------- Layout 1 ASCII 0 Keyboard 1 Movement Vi Keybinds 0 Fullscreen 1 Font 24/Crisp Map View 50x35 Zoom Use 0% Tactical HUD 0 Map Filters NONE Filters NONE Steam 1 RUN: d4f1343c-fc6b-491c-803c-7715789f7d73